bitfinex-derivatives/quotes_SOLF0:USTF0_20250603
["timestamp","ask_amount","ask_price","bid_price","bid_amount"]
[1748918946782,2.1261,160.25,160.18,35.42]
[1748918946982,9.29055704,160.25,160.18,35.42]
[1748918947182,0.04237596,160.23,160.18,35.42]
[1748918947378,6.2397,160.16,160.14,538.88]
[1748918947686,0.04237596,160.23,160.13,35.42]
[1748918947687,0.04756963,160.17,160.13,35.42]
[1748918947884,0.04756963,160.17,160.11,7.69902592]
[1748918948079,0.04756963,160.17,160.1,43.11902592]
[1748918948279,0.04756963,160.17,160.1,50.28348296]
[1748918948576,6.2412,160.13,160.1,50.28348296]
[1748918948782,0.04287543,160.13,160.1,50.28348296]
[1748918949177,0.04287543,160.13,160.11,7.16445704]
[1748918949373,0.04287543,160.13,160.0,11.53602264]
[1748918949578,0.04661309,160.08,160.04,7.16445704]
[1748918949787,0.03961441,160.08,160.06,7.16445704]
[1748918950081,2.1163,160.16,160.07,7.16445704]
[1748918950382,2.1163,160.16,160.09,7.16445704]
[1748918950579,10.57991016,160.18,160.11,7.16445704]
[1748918950775,10.57991016,160.18,160.13,7.16445704]
[1748918951081,0.04172619,160.17,160.14,0.04779706]
[1748918952879,6.28142619,160.17,160.14,0.04779706]
[1748918953987,0.04172619,160.17,160.14,0.04779706]
[1748918956287,6.2405,160.15,160.14,0.04779706]
[1748918957686,0.04172619,160.17,160.14,0.04779706]
[1748918957687,6.2402,160.16,160.14,0.04779706]
[1748918958494,6.2405,160.15,160.14,0.04779706]
[1748918959195,0.04172619,160.17,160.07,576.22]
[1748918959387,37.14,160.17,160.07,583.38445704]
[1748918959586,6.2421,160.11,160.08,7.16445704]
[1748918959784,7.16445704,160.16,160.08,7.16445704]
[1748918959988,37.14,160.17,160.07,576.22]
[1748918960294,37.14,160.17,160.11,7.16445704]
[1748918960295,6.28171743,160.14,160.11,7.16445704]
[1748918960491,0.04051743,160.14,160.11,7.16445704]
[1748918961289,0.04051743,160.14,160.1,6.2421]
[1748918961481,0.04051743,160.14,160.11,6.242]
[1748918961686,0.04051743,160.14,160.11,37.14]
[1748918962487,0.04051743,160.14,160.04,38.86]
[1748918962683,0.046854,160.11,160.05,38.86]
[1748918962889,0.046854,160.11,160.08,7.16445704]
[1748918963190,0.046854,160.11,160.05,38.86]
[1748918963493,0.046854,160.11,160.06,7.16445704]
[1748918963707,6.2425,160.1,160.06,13.40825704]
[1748918963993,0.046854,160.11,160.06,7.16445704]
[1748918964203,6.289254,160.11,160.07,6.2436]
[1748918964398,0.046854,160.11,160.05,38.86]
[1748918964597,0.046854,160.11,160.07,7.16445704]
[1748918964994,6.2425,160.1,160.07,7.16445704]
[1748918965199,6.2425,160.1,160.06,6.2437]
[1748918965400,0.046854,160.11,160.07,6.2436]
[1748918965401,6.289054,160.11,160.07,6.2436]
[1748918965794,0.046854,160.11,160.08,7.16445704]
[1748918966102,0.046854,160.11,160.1,7.16445704]
[1748918966698,0.046854,160.11,160.1,46.02445704]
[1748918966895,0.046854,160.11,160.1,38.86]
[1748918967099,0.046854,160.11,160.1,46.02445704]
[1748918968296,0.046854,160.11,160.1,38.86]
[1748918968701,6.288954,160.11,160.1,38.86]
[1748918968902,0.046854,160.11,160.1,38.86]
[1748918969904,0.046854,160.11,160.1,45.1025]
[1748918970099,0.046854,160.11,160.1,38.86]
[1748918970503,0.046854,160.11,160.1,46.02445704]
[1748918971103,0.046854,160.11,160.1,52.26695704]
[1748918973202,0.046854,160.11,160.1,45.1025]
[1748918973600,0.046854,160.11,160.1,52.26695704]
[1748918975800,0.046854,160.11,160.1,45.1025]
[1748918976001,0.046854,160.11,160.1,52.26695704]
[1748918976599,6.2402,160.16,160.13,6.2413]
[1748918976796,38.86,160.2,160.13,6.2413]
[1748918977105,4.89369381,160.23,160.19,7.16445704]
[1748918977306,4.3416,160.26,160.19,7.16445704]
[1748918977609,0.04221884,160.24,160.21,0.04190733]
[1748918978510,0.04221884,160.24,160.21,7.20636437]
[1748918978810,6.2374,160.23,160.21,7.20636437]
[1748918979002,0.04221884,160.24,160.21,7.20636437]
[1748918979311,6.2376,160.23,160.21,7.20636437]
[1748918980406,6.27941884,160.24,160.21,7.20636437]
[1748918981404,0.04221884,160.24,160.21,13.44436437]
[1748918982104,6.27921884,160.24,160.21,7.20636437]
[1748918982813,0.04221884,160.24,160.21,13.44456437]
[1748918983007,0.04221884,160.24,160.21,7.20636437]
[1748918983605,6.27921884,160.24,160.21,7.20636437]
[1748918984809,6.27921884,160.24,160.21,0.04190733]
[1748918985017,6.27921884,160.24,160.21,7.20636437]
[1748918986216,6.2374,160.23,160.21,7.20636437]
[1748918987822,6.27931884,160.24,160.21,7.20636437]
[1748918988817,0.04221884,160.24,160.21,7.20636437]
[1748918989315,0.04221884,160.24,160.21,0.04190733]
[1748918989516,0.04221884,160.24,160.21,7.20636437]
[1748918990112,6.27941884,160.24,160.22,7.16445704]
[1748918990517,0.04221884,160.24,160.22,7.16445704]
[1748918991821,6.27941884,160.24,160.22,7.16445704]
[1748918994913,6.27941884,160.24,160.21,0.04190733]
[1748918995113,6.2374,160.23,160.22,7.16445704]
[1748918995307,6.2374,160.23,160.21,7.20636437]
[1748918995819,6.27931884,160.24,160.21,7.20636437]
[1748918996817,0.04221884,160.24,160.21,7.20636437]
[1748918997018,0.04221884,160.24,160.21,0.04190733]
[1748918997715,0.04221884,160.24,160.21,7.20636437]
[1748918997918,6.2378,160.23,160.21,7.20636437]
[1748919000117,6.27931884,160.24,160.21,13.44446437]
[1748919000316,6.27931884,160.24,160.21,6.28000733]
[1748919000521,6.27931884,160.24,160.23,7.16445704]
[1748919001419,7.20667588,160.24,160.11,3.9897]
[1748919001619,2.1291,160.23,160.16,7.16445704]
[1748919002423,6.239,160.19,160.16,7.16445704]
[1748919002821,0.04185518,160.21,160.16,7.16445704]
[1748919003024,6.2389,160.2,160.16,7.16445704]
[1748919003418,6.28015518,160.21,160.18,7.16445704]
[1748919004115,0.04185518,160.21,160.18,7.16445704]
[1748919004333,0.04185518,160.21,160.2,7.16445704]
[1748919004526,0.04185518,160.21,160.15,37.92]
[1748919004824,6.2397,160.18,160.15,37.92]
[1748919005027,0.04185518,160.21,160.15,37.92]
[1748919005223,6.24,160.17,160.15,37.92]
[1748919005624,0.04403928,160.18,160.15,37.92]
[1748919005814,0.04403928,160.18,160.16,7.16445704]
[1748919006221,0.04403928,160.18,160.16,6.2397]
[1748919006416,0.04403928,160.18,160.15,45.08445704]
[1748919007025,0.04403928,160.18,160.16,6.2401]
[1748919007323,7.20849632,160.18,160.08,37.92]
[1748919007530,0.04474862,160.15,160.1,7.16445704]
[1748919007721,6.2413,160.13,160.08,37.92]
[1748919007918,0.04474862,160.15,160.09,7.16445704]
[1748919008229,6.2418,160.12,160.09,7.16445704]
[1748919008420,0.04474862,160.15,160.09,7.16445704]
[1748919008733,0.04474862,160.15,160.08,45.08445704]
[1748919009319,6.2413,160.13,160.09,6.2428]
[1748919009715,0.04474862,160.15,160.09,6.2428]
[1748919010116,0.04474862,160.15,160.08,45.08445704]
[1748919010117,6.2416,160.12,160.08,51.32755704]
[1748919010419,6.28781647,160.12,160.08,51.32755704]
[1748919010619,0.04621647,160.12,160.1,7.16445704]
[1748919011022,0.04621647,160.12,160.08,37.92]
[1748919011217,0.04621647,160.12,160.1,7.16445704]
[1748919012127,6.28791647,160.12,160.08,44.1631]
[1748919012329,0.04621647,160.12,160.08,45.08445704]
[1748919012729,6.2421,160.11,160.08,45.08445704]
[1748919012924,6.2421,160.11,160.08,37.92]
[1748919013230,0.04621647,160.12,160.08,37.92]
[1748919013721,6.2421,160.11,160.08,37.92]
[1748919013922,0.04621647,160.12,160.08,37.92]
[1748919015328,6.2428,160.1,160.08,37.92]
[1748919015933,6.2428,160.09,160.08,37.92]
[1748919016333,0.04621647,160.12,160.08,37.92]
[1748919016535,6.2428,160.09,160.08,37.92]
[1748919016733,0.04621647,160.12,160.08,37.92]
[1748919017236,6.2428,160.09,160.08,37.92]
[1748919017728,0.04621647,160.12,160.08,37.92]
[1748919017923,0.04621647,160.12,160.08,45.08445704]
[1748919018126,0.04621647,160.12,160.08,37.92]
[1748919018327,6.2428,160.09,160.08,37.92]
[1748919020425,6.2426,160.1,160.08,37.92]
[1748919020637,0.04621647,160.12,160.08,37.92]
[1748919021230,6.2423,160.11,160.08,37.92]
[1748919021428,0.04621647,160.12,160.08,37.92]
[1748919021630,6.2427,160.1,160.08,37.92]
[1748919022228,6.2428,160.09,160.08,37.92]
[1748919022938,6.28801647,160.12,160.08,37.92]
[1748919023138,0.04621647,160.12,160.08,45.08445704]
[1748919023332,0.04621647,160.12,160.08,51.32765704]
[1748919023938,0.04621647,160.12,160.09,6.2428]
[1748919024137,0.04621647,160.12,160.08,45.08445704]
[1748919024138,0.04621647,160.12,160.1,7.16445704]
[1748919024536,6.2424,160.1,160.08,45.08445704]
[1748919024732,0.04621647,160.12,160.08,37.92]
[1748919024939,6.2427,160.1,160.08,37.92]
[1748919025139,0.04621647,160.12,160.08,37.92]
[1748919025542,6.2428,160.09,160.08,37.92]
[1748919027034,6.2425,160.1,160.08,37.92]
[1748919027441,0.04621647,160.12,160.09,7.16445704]
[1748919029048,6.2423,160.11,160.09,7.16445704]
[1748919029450,0.04621647,160.12,160.09,7.16445704]
[1748919029650,0.04621647,160.12,160.08,37.92]
[1748919029844,0.04621647,160.12,160.11,7.16445704]
[1748919030050,6.28781647,160.12,160.11,7.16445704]
[1748919030948,0.04621647,160.12,160.08,45.08445704]
[1748919031551,0.04621647,160.12,160.08,37.92]
[1748919032061,6.2428,160.09,160.08,37.92]
[1748919032252,0.04621647,160.12,160.08,37.92]
[1748919032454,6.2427,160.1,160.08,37.92]
[1748919032757,0.04621647,160.12,160.08,37.92]
[1748919034252,6.2424,160.11,160.08,37.92]
[1748919034751,6.28811647,160.12,160.08,37.92]
[1748919034951,6.28811647,160.12,160.09,7.16445704]
[1748919035251,6.28811647,160.12,160.09,13.40705704]
[1748919035652,0.04621647,160.12,160.09,7.16445704]
[1748919036061,0.04621647,160.12,160.09,13.40695704]
[1748919036563,0.04621647,160.12,160.11,7.16445704]
[1748919036856,6.2402,160.16,160.09,2.0795]
[1748919037066,36.94,160.2,160.12,7.16445704]
[1748919037258,36.94,160.2,160.12,44.10445704]
[1748919037761,6.2404,160.16,160.14,0.04055611]
[1748919037958,0.04099562,160.17,160.14,0.04055611]
[1748919038164,6.2405,160.15,160.14,0.04055611]
[1748919039457,0.04099562,160.17,160.14,0.04055611]
[1748919039458,0.04099562,160.17,160.15,6.2402]
[1748919039653,0.04099562,160.17,160.16,44.10445704]
[1748919040161,6.2384,160.21,160.16,44.10445704]
[1748919040662,11.94597111,160.25,160.18,6.2392]
[1748919041066,0.03968319,160.23,160.2,0.04551292]
[1748919041253,6.2381,160.21,160.2,0.04551292]
[1748919044162,6.2395,160.18,160.16,36.94]
[1748919044468,7.16445704,160.22,160.16,36.94]
[1748919044661,7.16445704,160.22,160.13,7.16445704]
[1748919044662,6.2403,160.16,160.13,7.16445704]
[1748919045070,6.2403,160.16,160.12,50.32585704]
[1748919045265,6.2819585,160.16,160.12,50.37358042]
[1748919046168,0.0416585,160.16,160.12,36.96772338]
[1748919046374,0.0416585,160.16,160.12,44.13218042]
[1748919046772,0.0416585,160.16,160.14,7.16445704]
[1748919047471,0.0416585,160.16,160.13,6.2409]
[1748919047776,0.0416585,160.16,160.14,7.16445704]
[1748919049868,4.96865724,160.21,160.14,7.16445704]
[1748919050073,36.92,160.23,160.17,7.16445704]
[1748919050074,4.96865724,160.22,160.17,7.16445704]
[1748919050779,4.96865724,160.21,160.16,7.16445704]
[1748919050972,5.01126368,160.2,160.17,0.03950571]
[1748919051177,6.2392,160.19,160.17,0.03950571]
[1748919051374,0.04260644,160.2,160.17,0.03950571]
[1748919052283,6.2391,160.19,160.17,0.03950571]
[1748919053573,0.04260644,160.2,160.17,0.03950571]
[1748919054182,6.2392,160.19,160.17,0.03950571]
[1748919054376,5.01150063,160.2,160.17,6.27910571]
[1748919054577,0.04260644,160.2,160.18,7.16445704]
[1748919055282,0.04260644,160.2,160.17,6.27900571]
[1748919055283,6.28120644,160.2,160.17,6.27900571]
[1748919055483,6.28120644,160.2,160.18,7.16445704]
[1748919055783,0.04260644,160.2,160.18,7.16445704]
[1748919056078,0.04260644,160.2,160.18,13.40365704]
[1748919056285,0.04260644,160.2,160.18,7.16445704]
[1748919057982,0.04260644,160.2,160.19,6.2389]
[1748919059382,0.04260644,160.2,160.19,13.40335704]
[1748919064481,0.04260644,160.2,160.19,6.2389]
[1748919064676,0.04260644,160.2,160.19,13.40335704]
[1748919065388,0.04260644,160.2,160.19,6.2389]
[1748919065584,0.04260644,160.2,160.19,13.40335704]
[1748919067184,0.04260644,160.2,160.17,0.03950571]
[1748919068293,6.2393,160.18,160.17,0.03950571]
[1748919068493,7.20706348,160.2,160.11,7.16445704]
[1748919068694,7.20706348,160.2,160.11,13.40635704]
[1748919068695,6.2403,160.16,160.11,13.40635704]
[1748919068985,9.30075704,160.2,160.11,7.16445704]
[1748919069196,6.2408,160.15,160.11,7.16445704]
[1748919069588,0.04559219,160.15,160.11,7.21104447]
[1748919069891,0.04559219,160.15,160.11,0.04658743]
[1748919070083,6.2411,160.14,160.11,0.04658743]
[1748919070285,0.04559219,160.15,160.11,6.28858743]
[1748919070890,6.241,160.14,160.11,0.04658743]
[1748919071094,0.04559219,160.15,160.11,0.04658743]
[1748919071392,6.2416,160.13,160.11,0.04658743]
[1748919071787,0.04559219,160.15,160.11,7.21104447]
[1748919071989,0.04559219,160.15,160.11,0.04658743]
[1748919072187,0.04559219,160.15,160.12,6.2414]
[1748919072390,6.28629219,160.15,160.11,7.21104447]
[1748919073385,6.28629219,160.15,160.11,13.45294447]
[1748919073785,0.04559219,160.15,160.11,7.21104447]
[1748919074992,0.04559219,160.15,160.12,6.2416]
[1748919075394,6.28619219,160.15,160.11,7.21104447]
[1748919075589,6.28619219,160.15,160.12,6.2416]
[1748919076185,0.04559219,160.15,160.13,7.16445704]
[1748919076495,0.04559219,160.15,160.14,7.16445704]
[1748919077390,0.04559219,160.15,160.14,13.40535704]
[1748919078295,0.04559219,160.15,160.11,0.04658743]
[1748919079493,6.2416,160.12,160.11,0.04658743]
[1748919081493,6.2414,160.13,160.11,0.04658743]
[1748919081691,0.04559219,160.15,160.11,0.04658743]
[1748919082094,6.2416,160.12,160.11,0.04658743]
[1748919083494,5.0048243,160.15,160.11,0.04658743]
[1748919083691,0.04559219,160.15,160.11,0.04658743]
[1748919084091,6.2416,160.12,160.11,0.04658743]
[1748919087689,299.0,160.11,159.98,2.55397415]
[1748919087887,7.16445704,160.04,159.98,2.55397415]
[1748919088292,6.246,160.01,159.98,2.55397415]
[1748919088597,7.16445704,160.06,159.98,2.55397415]
[1748919088799,0.03985934,160.04,159.98,2.55397415]
[1748919089391,7.20431638,160.04,159.98,2.55397415]
[1748919089796,6.2467,159.99,159.98,2.55397415]
[1748919090385,6.2488,159.94,159.9,41.2901]
[1748919090599,0.04208122,159.94,159.91,7.16445704]
[1748919090991,0.04208122,159.94,159.92,7.16445704]
[1748919091297,0.04208122,159.94,159.91,6.2497]
[1748919091495,0.04208122,159.94,159.9,41.2898]
[1748919091690,0.04208122,159.94,159.9,42.20445704]
[1748919091998,0.04208122,159.94,159.91,7.16445704]
[1748919092399,0.04208122,159.94,159.92,6.2494]
[1748919093189,0.04208122,159.94,159.9,35.04]
[1748919093403,0.04208122,159.94,159.9,42.20445704]
[1748919093602,0.04208122,159.94,159.91,6.2496]
[1748919093797,0.04208122,159.94,159.92,7.16445704]
[1748919094199,0.04208122,159.94,159.93,6.249]
[1748919094399,6.2466,160.0,159.92,7.16445704]
[1748919094691,2.1162,160.03,159.96,7.16445704]
[1748919094898,2.1162,160.03,159.96,42.22445704]
[1748919095101,2.1162,160.03,159.96,35.06]
[1748919095301,2.1162,160.03,159.96,42.22445704]
[1748919095509,0.04335373,160.01,159.98,0.04428704]
[1748919095903,6.2464,160.0,159.98,0.04428704]
[1748919097297,6.2467,159.99,159.98,0.04428704]
[1748919097496,0.04335373,160.01,159.98,0.04428704]
[1748919097703,6.2463,160.0,159.98,0.04428704]
[1748919098097,0.04335373,160.01,159.98,0.04428704]
[1748919099406,6.28925373,160.01,159.98,0.04428704]
[1748919100303,0.04335373,160.01,159.98,0.04428704]
[1748919100506,0.04335373,160.01,160.0,7.16445704]
[1748919101098,0.04335373,160.01,160.0,42.22445704]
[1748919101502,0.04335373,160.01,160.0,48.47075704]
[1748919102105,0.04335373,160.01,160.0,41.3063]
[1748919102301,0.04335373,160.01,160.0,48.47075704]
[1748919102907,6.2436,160.07,160.02,6.2453]
[1748919103205,5.65537504,160.09,160.03,7.16445704]
[1748919103405,6.2435,160.08,160.05,7.16445704]
[1748919104004,6.2853211,160.08,160.05,7.20502116]
[1748919104410,6.2438,160.07,160.05,7.20502116]
[1748919104598,0.0418211,160.08,160.05,0.04056412]
[1748919105104,6.2435,160.07,160.05,0.04056412]
[1748919107308,6.2851211,160.08,160.05,0.04056412]
[1748919107713,0.0418211,160.08,160.06,7.16445704]
[1748919108910,5.65537504,160.09,160.06,7.16445704]
[1748919109109,35.06,160.17,160.11,7.16445704]
[1748919109910,6.2416,160.12,160.11,7.16445704]
[1748919111111,6.242,160.11,160.1,35.10671404]
[1748919111315,6.242,160.11,160.1,0.04671404]
[1748919111615,6.2431,160.08,160.07,35.06]
[1748919111811,7.16445704,160.11,160.04,35.06]
[1748919112221,6.2443,160.05,160.04,35.06]
[1748919113813,6.2447,160.04,160.03,0.0448942]
[1748919114317,11.70399445,160.05,159.97,35.06]
[1748919114513,6.2471,159.98,159.97,35.06]
[1748919118321,6.29471729,159.99,159.97,35.06]
[1748919118517,0.04791729,159.99,159.97,35.06]
[1748919118716,6.2471,159.98,159.97,35.06]
[1748919120325,6.29461729,159.99,159.97,35.06]
[1748919120519,0.04791729,159.99,159.97,35.06]
[1748919121220,6.2471,159.98,159.97,35.06]
[1748919121818,6.29471729,159.99,159.97,35.06]
[1748919122420,6.2471,159.98,159.97,35.06]
[1748919122820,0.04791729,159.99,159.97,35.06]
[1748919124523,0.04791729,159.99,159.97,41.3074]
[1748919124826,0.04791729,159.99,159.97,35.06]
[1748919125022,0.04791729,159.99,159.98,11.70399445]
[1748919125325,4.9032552,160.04,159.98,11.70399445]
[1748919125537,4.9032552,160.04,160.0,11.70399445]
[1748919125718,4.9032552,160.04,160.01,35.3]
[1748919125922,4.9032552,160.04,160.01,41.5458]
[1748919126224,4.94999713,160.04,160.02,11.70399445]
[1748919127027,4.94999713,160.04,160.01,35.34239762]
[1748919127334,6.2455,160.02,160.01,35.34239762]
[1748919127525,6.2455,160.02,160.01,0.04239762]
[1748919128835,6.2453,160.03,160.01,0.04239762]
[1748919129035,4.94999713,160.04,160.01,0.04239762]
[1748919129532,6.2454,160.03,160.01,0.04239762]
[1748919129929,4.94999713,160.04,160.01,0.04239762]
[1748919130529,6.2454,160.03,160.01,0.04239762]
[1748919130732,4.94999713,160.04,160.01,0.04239762]
[1748919131133,6.2455,160.02,160.01,0.04239762]
[1748919134629,6.2452,160.03,160.01,0.04239762]
[1748919134928,4.94999713,160.04,160.01,0.04239762]
[1748919135235,6.2451,160.03,160.01,0.04239762]
[1748919135432,4.94999713,160.04,160.01,0.04239762]
[1748919136235,6.2455,160.02,160.01,0.04239762]
[1748919137537,6.2466,159.99,159.98,35.3]
[1748919138034,21.5198332,160.04,159.95,574.82]
[1748919138436,0.04570184,160.01,159.98,0.04790706]
[1748919138933,6.2466,159.99,159.98,0.04790706]
[1748919139641,6.2463,160.0,159.98,0.04790706]
[1748919139824,0.04570184,160.01,159.98,0.04790706]
[1748919140230,6.2465,160.0,159.98,0.04790706]
[1748919140735,162.08570184,160.01,159.91,11.70399445]
[1748919140934,162.04,160.01,159.93,11.70399445]
[1748919141131,126.74,160.01,159.93,11.70399445]
[1748919141435,126.74,160.01,159.93,17.95279445]
[1748919141635,0.0426584,159.99,159.93,17.95279445]
[1748919141829,6.2476,159.97,159.93,53.25279445]
[1748919142039,6.2476,159.97,159.94,6.2484]
[1748919142339,6.2478,159.96,159.93,47.00399445]
[1748919142742,0.0426584,159.99,159.93,53.25269445]
[1748919143536,6.2481,159.96,159.93,47.00399445]
[1748919144539,6.2483,159.95,159.93,47.00399445]
[1748919144835,0.04624172,159.96,159.93,35.3]
[1748919145732,0.04624172,159.96,159.93,41.5488]
[1748919146044,0.04624172,159.96,159.94,11.70399445]
[1748919146541,0.04624172,159.96,159.94,17.95229445]
[1748919146741,0.04624172,159.96,159.93,47.00399445]
[1748919148341,0.04624172,159.96,159.93,35.3]
[1748919148941,0.04624172,159.96,159.94,11.70399445]
[1748919149239,0.04624172,159.96,159.95,7.18842757]
[1748919151538,6.29414172,159.96,159.93,41.5488]
[1748919151841,6.29414172,159.96,159.94,7.18842757]
[1748919152042,6.29414172,159.96,159.93,41.5488]
[1748919152234,6.29414172,159.96,159.93,48.73722757]
[1748919152729,0.04624172,159.96,159.93,48.73722757]
[1748919153440,0.04624172,159.96,159.94,6.2485]
[1748919154443,0.04624172,159.96,159.93,48.73722757]
[1748919154745,0.04624172,159.96,159.93,42.48842757]
[1748919155437,0.04624172,159.96,159.93,35.3]
[1748919155942,6.2485,159.95,159.93,35.3]
[1748919157443,7.23466929,159.96,159.89,34.62]
[1748919157739,0.04202467,159.94,159.89,34.62]
[1748919157938,7.23045224,159.94,159.89,34.62]
[1748919158143,0.04202467,159.94,159.89,34.62]
[1748919159241,0.04202467,159.94,159.54,19.28688778]
[1748919159242,160.86,159.93,159.54,19.28688778]
[1748919159442,160.86,159.93,159.69,11.66904015]
[1748919159443,7.24429556,159.75,159.69,11.66904015]
[1748919159648,0.04073037,159.74,159.69,11.66904015]
[1748919159947,0.04073037,159.74,159.62,6.2136]
[1748919159948,0.04753821,159.73,159.7,41.84240789]
[1748919160144,7.20240789,159.82,159.71,36.7459]
[1748919160445,7.20240789,159.8,159.72,2.0872]
[1748919160746,2.59252816,159.79,159.72,9.28960789]
[1748919161039,0.04036697,159.77,159.74,0.04486696]
[1748919161843,2.59334915,159.76,159.74,0.04486696]
[1748919162044,2.59367766,159.75,159.74,0.04486696]
[1748919162244,2.59368126,159.75,159.74,0.04486696]
[1748919162441,2.59322061,159.76,159.74,0.04486696]
[1748919162647,2.5936156,159.75,159.74,0.04486696]
[1748919162846,8.8496156,159.75,159.74,0.04486696]
[1748919163050,6.256,159.75,159.74,0.04486696]
[1748919163544,6.2565,159.74,159.71,36.7459]
[1748919163847,2.59372878,159.73,159.71,36.7459]
[1748919164246,11.76139164,159.74,159.63,11.76139164]
[1748919164446,2.6017526,159.73,159.63,52.36069164]
[1748919164649,0.04214765,159.7,159.63,52.36069164]
[1748919164847,6.30014765,159.7,159.64,18.02129164]
[1748919165052,2.60200784,159.69,159.64,18.02129164]
[1748919165351,0.04214765,159.7,159.65,6.2596]
[1748919165842,2.60211714,159.69,159.64,11.76139164]
[1748919166047,6.30024765,159.7,159.64,11.76139164]
[1748919166357,6.30024765,159.7,159.64,6.2602]
[1748919166555,2.60305971,159.69,159.64,18.02159164]
[1748919166748,6.30024765,159.7,159.64,18.02159164]
[1748919167243,2.60291695,159.69,159.64,11.76139164]
[1748919167447,0.04214765,159.7,159.63,40.5993]
[1748919167851,6.2584,159.69,159.63,40.5993]
[1748919168446,8.86148749,159.68,159.63,40.5993]
[1748919168648,0.04214765,159.7,159.63,40.5993]
[1748919168950,6.2588,159.68,159.63,40.5993]
[1748919169147,2.6022994,159.67,159.63,40.5993]
[1748919169352,0.04212916,159.67,159.63,40.5993]
[1748919169654,6.30152916,159.67,159.63,38.4254]
[1748919169852,0.04212916,159.67,159.63,38.4254]
[1748919170054,2.60177349,159.66,159.63,38.4254]
[1748919170254,0.04212916,159.67,159.64,11.76139164]
[1748919170656,36.28,159.75,159.66,11.76139164]
[1748919170852,36.28,159.75,159.67,36.28]
[1748919171760,6.2574,159.72,159.69,0.0418826]
[1748919171957,0.04233985,159.73,159.7,11.76139164]
[1748919172255,0.04233985,159.73,159.72,11.76139164]
[1748919172455,2.59322061,159.76,159.72,11.76139164]
[1748919172657,2.60322343,159.75,159.72,13.91699164]
[1748919172853,2.59322061,159.76,159.72,13.91699164]
[1748919173055,2.60316414,159.75,159.72,13.91699164]
[1748919173250,2.60314887,159.74,159.72,2.1556]
[1748919173445,2.59322061,159.76,159.72,2.1556]
[1748919173446,6.29663356,159.75,159.72,13.91699164]
[1748919173646,0.04063356,159.75,159.72,13.91699164]
[1748919173956,2.60310358,159.74,159.72,13.91699164]
[1748919174160,0.04063356,159.75,159.72,13.91699164]
[1748919174354,2.59322061,159.76,159.72,4.257]
[1748919174557,11.76139164,159.85,159.75,11.76139164]
[1748919174760,11.76139164,159.85,159.75,54.31739164]
[1748919174761,6.2541,159.8,159.75,54.31739164]
[1748919175059,11.76139164,159.81,159.75,36.3]
[1748919175257,6.2549,159.78,159.75,36.3]
[1748919175463,0.04490531,159.78,159.75,36.34224874]
[1748919176657,6.2553,159.77,159.75,36.34224874]
[1748919177560,0.04490531,159.78,159.75,0.04224874]
[1748919177853,6.2556,159.76,159.75,0.04224874]
[1748919178863,6.2553,159.77,159.75,0.04224874]
[1748919179156,0.04490531,159.78,159.75,0.04224874]
[1748919179356,6.2552,159.77,159.75,0.04224874]
[1748919179550,0.04490531,159.78,159.75,0.04224874]
[1748919180158,6.29980531,159.78,159.75,0.04224874]
[1748919180361,0.04490531,159.78,159.75,0.04224874]
[1748919181163,6.2556,159.76,159.75,0.04224874]
[1748919181755,6.2556,159.76,159.68,36.3]
[1748919181756,6.2577,159.71,159.68,36.3]
[1748919181960,11.76139164,159.76,159.68,36.3]
[1748919182163,11.76139164,159.77,159.68,36.3]
[1748919182658,6.2575,159.72,159.68,36.3]
[1748919182861,6.29775678,159.72,159.69,2.05907115]
[1748919183256,0.04025678,159.72,159.69,8.31717115]
[1748919183460,0.04025678,159.72,159.69,2.05907115]
[1748919183857,2.59264046,159.79,159.69,13.82046279]
[1748919184051,2.59264046,159.79,159.7,2.1145]
[1748919184461,2.59264046,159.79,159.7,8.3724]
[1748919184659,2.59264046,159.79,159.7,2.1145]
[1748919184854,6.2563,159.75,159.73,0.04644826]
[1748919185157,0.0416086,159.76,159.73,0.04644826]
[1748919185362,6.2564,159.74,159.73,0.04644826]
[1748919186962,6.256,159.75,159.73,0.04644826]
[1748919187162,0.0416086,159.76,159.73,0.04644826]
[1748919187365,2.5313711,159.75,159.73,11.8078399]
[1748919187670,0.0416086,159.76,159.73,0.04644826]
[1748919187871,0.0416086,159.76,159.73,6.30294826]
[1748919187872,2.53222096,159.75,159.73,6.30294826]
[1748919188163,0.0416086,159.76,159.73,6.30294826]
[1748919189266,0.0416086,159.76,159.74,11.76139164]
[1748919189563,6.2973086,159.76,159.74,11.76139164]